[Event "Early-Titled-Tuesday-Blitz-February-06-2024"]
[Site "Chess.com"]
[Date "2024.02.06"]
[Round "2"]
[White "KnightmareJoker"]
[Black "ferdipy"]
[Result "1-0"]
[WhiteElo "2149"]
[BlackElo "2417"]
[TimeControl "180+1"]
[EndTime "8:17:27 PST"]
[Termination "KnightmareJoker won by checkmate"]

1. e4 {[%clk 0:03:00.9]} 1... e6 {[%clk 0:02:54.7]} 2. d4 {[%clk 0:03:00.7]}
2... d5 {[%clk 0:02:55.6]} 3. Nc3 {[%clk 0:03:01.2]} 3... Bb4 {[%clk 0:02:55.4]}
4. e5 {[%clk 0:03:01.2]} 4... c5 {[%clk 0:02:55.8]} 5. a3 {[%clk 0:03:01.6]}
5... Bxc3+ {[%clk 0:02:56.2]} 6. bxc3 {[%clk 0:03:02.5]} 6... Ne7 {[%clk
0:02:56.5]} 7. Nf3 {[%clk 0:03:00.6]} 7... Qa5 {[%clk 0:02:55.4]} 8. Bd2 {[%clk
0:02:59]} 8... Qa4 {[%clk 0:02:55.1]} 9. Qb1 {[%clk 0:02:57.9]} 9... c4 {[%clk
0:02:54.3]} 10. h4 {[%clk 0:02:53.9]} 10... Nbc6 {[%clk 0:02:53.2]} 11. h5
{[%clk 0:02:50.2]} 11... h6 {[%clk 0:02:53]} 12. Nh4 {[%clk 0:02:50.4]} 12... b6
{[%clk 0:02:48.3]} 13. g4 {[%clk 0:02:37.3]} 13... Bd7 {[%clk 0:02:44.7]} 14.
Qb2 {[%clk 0:02:29.2]} 14... O-O-O {[%clk 0:02:41.3]} 15. Rb1 {[%clk 0:02:06.8]}
15... f6 {[%clk 0:02:39.7]} 16. f4 {[%clk 0:02:00.1]} 16... fxe5 {[%clk
0:02:38.8]} 17. dxe5 {[%clk 0:01:51.4]} 17... Rhf8 {[%clk 0:02:26.1]} 18. Bh3
{[%clk 0:01:43.7]} 18... d4 {[%clk 0:02:08]} 19. O-O {[%clk 0:00:58.6]} 19...
Nd5 {[%clk 0:02:05.2]} 20. f5 {[%clk 0:00:47.9]} 20... Nxe5 {[%clk 0:01:23.3]}
21. cxd4 {[%clk 0:00:47.1]} 21... Nc6 {[%clk 0:01:20.3]} 22. Ng6 {[%clk
0:00:47.2]} 22... Rfe8 {[%clk 0:01:12.9]} 23. g5 {[%clk 0:00:37.6]} 23... exf5
{[%clk 0:01:08.1]} 24. Bxf5 {[%clk 0:00:35.2]} 24... Bxf5 {[%clk 0:01:08.4]} 25.
Rxf5 {[%clk 0:00:35.5]} 25... Ne3 {[%clk 0:00:55.1]} 26. Bxe3 {[%clk 0:00:34.8]}
26... Rxe3 {[%clk 0:00:56]} 27. c3 {[%clk 0:00:29.8]} 27... Rde8 {[%clk
0:00:50.7]} 28. Qg2 {[%clk 0:00:26.7]} 28... R8e4 {[%clk 0:00:38.5]} 29. Rf8+
{[%clk 0:00:26.5]} 29... Kb7 {[%clk 0:00:36]} 30. Rf7+ {[%clk 0:00:26.9]} 30...
Ka6 {[%clk 0:00:35.8]} 31. Nf4 {[%clk 0:00:25.4]} 31... hxg5 {[%clk 0:00:29.6]}
32. Nd5 {[%clk 0:00:25.1]} 32... Nd8 {[%clk 0:00:27.1]} 33. Nc7+ {[%clk
0:00:25.1]} 33... Ka5 {[%clk 0:00:27.4]} 34. Rf5+ {[%clk 0:00:23.6]} 34... b5
{[%clk 0:00:14.2]} 35. Rfxb5+ {[%clk 0:00:23.7]} 35... Qxb5 {[%clk 0:00:13]} 36.
Rxb5+ {[%clk 0:00:24.6]} 36... Ka4 {[%clk 0:00:13.9]} 37. Qc2+ {[%clk 0:00:25]}
37... Kxa3 {[%clk 0:00:13.1]} 38. Qb2+ {[%clk 0:00:25.8]} 38... Ka4 {[%clk
0:00:13.3]} 39. Qb4# {[%clk 0:00:26.7]} 1-0

[Event "Early-Titled-Tuesday-Blitz-February-06-2024"]
[Site "Chess.com"]
[Date "2024.02.06"]
[Round "2"]
[White "Yan_Dyomin2010"]
[Black "Vladimir_Zakhartsov"]
[Result "1-0"]
[WhiteElo "2597"]
[BlackElo "2823"]
[TimeControl "180+1"]
[EndTime "8:17:28 PST"]
[Termination "Yan_Dyomin2010 won by checkmate"]

1. e4 {[%clk 0:03:00.9]} 1... c5 {[%clk 0:02:59.6]} 2. Nf3 {[%clk 0:02:59.9]}
2... d6 {[%clk 0:03:00]} 3. d4 {[%clk 0:03:00.5]} 3... Nf6 {[%clk 0:03:00.4]} 4.
Nc3 {[%clk 0:02:59.6]} 4... cxd4 {[%clk 0:03:01]} 5. Qxd4 {[%clk 0:03:00.4]}
5... Bd7 {[%clk 0:02:59.5]} 6. Bc4 {[%clk 0:02:59.7]} 6... Nc6 {[%clk
0:02:58.5]} 7. Qd3 {[%clk 0:03:00.2]} 7... g6 {[%clk 0:02:56.4]} 8. Bg5 {[%clk
0:02:57.3]} 8... Bg7 {[%clk 0:02:56.5]} 9. Bb3 {[%clk 0:02:56.3]} 9... O-O
{[%clk 0:02:54.7]} 10. O-O-O {[%clk 0:02:54.5]} 10... Qa5 {[%clk 0:02:37.2]} 11.
Kb1 {[%clk 0:02:44.9]} 11... Rac8 {[%clk 0:02:35.4]} 12. Bd2 {[%clk 0:02:39.5]}
12... Qc7 {[%clk 0:02:30.2]} 13. Nd5 {[%clk 0:02:37.6]} 13... Nxd5 {[%clk
0:02:30.4]} 14. exd5 {[%clk 0:02:38.2]} 14... Na5 {[%clk 0:02:28.5]} 15. Nd4
{[%clk 0:02:24.7]} 15... Nxb3 {[%clk 0:02:18.2]} 16. axb3 {[%clk 0:02:20.5]}
16... Qc5 {[%clk 0:01:35.8]} 17. Bc3 {[%clk 0:02:13.1]} 17... Qxd5 {[%clk
0:01:35.1]} 18. Qe3 {[%clk 0:02:09.8]} 18... Qxg2 {[%clk 0:01:24.1]} 19. Qxe7
{[%clk 0:02:06.9]} 19... Bg4 {[%clk 0:01:09.7]} 20. Rhg1 {[%clk 0:01:52.1]}
20... Qh3 {[%clk 0:01:04.6]} 21. Rd3 {[%clk 0:01:43.8]} 21... Qh5 {[%clk
0:01:03.6]} 22. Qxb7 {[%clk 0:01:35.1]} 22... a5 {[%clk 0:00:50.4]} 23. Rdg3
{[%clk 0:01:28.8]} 23... Bxd4 {[%clk 0:00:38.6]} 24. Bxd4 {[%clk 0:01:28.5]}
24... Bf5 {[%clk 0:00:39.1]} 25. Bc3 {[%clk 0:01:22.4]} 25... Qe2 {[%clk
0:00:38.7]} 26. Rc1 {[%clk 0:01:18.7]} 26... Qxf2 {[%clk 0:00:36.2]} 27. Rf3
{[%clk 0:01:14]} 27... Qg2 {[%clk 0:00:33.1]} 28. Qd5 {[%clk 0:01:03.5]} 28...
Rc5 {[%clk 0:00:09.5]} 29. Qd4 {[%clk 0:01:00.2]} 29... Re5 {[%clk 0:00:07.3]}
30. Rxf5 {[%clk 0:00:59.2]} 30... gxf5 {[%clk 0:00:03.6]} 31. Rg1 {[%clk
0:00:59.4]} 31... Qg6 {[%clk 0:00:03.9]} 32. Rxg6+ {[%clk 0:00:57.8]} 32... hxg6
{[%clk 0:00:04.8]} 33. Qxd6 {[%clk 0:00:57.3]} 33... Re6 {[%clk 0:00:04.7]} 34.
Qd4 {[%clk 0:00:57]} 34... f6 {[%clk 0:00:04.7]} 35. Qd5 {[%clk 0:00:56.3]}
35... Re8 {[%clk 0:00:05.3]} 36. Bxf6 {[%clk 0:00:52.8]} 36... Kf7 {[%clk
0:00:05.3]} 37. Bd4 {[%clk 0:00:53.4]} 37... Re7 {[%clk 0:00:03.1]} 38. c3
{[%clk 0:00:50.3]} 38... f4 {[%clk 0:00:02.4]} 39. Qf3 {[%clk 0:00:45.1]} 39...
g5 {[%clk 0:00:02.6]} 40. Qh5+ {[%clk 0:00:43.8]} 40... Kf8 {[%clk 0:00:03]} 41.
Qxg5 {[%clk 0:00:43.3]} 41... Rf7 {[%clk 0:00:03.2]} 42. Qd8+ {[%clk 0:00:42.1]}
42... Re8 {[%clk 0:00:03.8]} 43. Bc5+ {[%clk 0:00:40.1]} 43... Kg7 {[%clk
0:00:04.2]} 44. Qxe8 {[%clk 0:00:40.3]} 44... f3 {[%clk 0:00:05.1]} 45. Bd4+
{[%clk 0:00:39.6]} 45... Kg6 {[%clk 0:00:05.8]} 46. Qxf7+ {[%clk 0:00:40]} 46...
Kh6 {[%clk 0:00:06.5]} 47. Be3# {[%clk 0:00:39.8]} 1-0

[Event "Early-Titled-Tuesday-Blitz-February-06-2024"]
[Site "Chess.com"]
[Date "2024.02.06"]
[Round "2"]
[White "RichardLeyvaP"]
[Black "ReinisUz"]
[Result "1-0"]
[WhiteElo "2545"]
[BlackElo "2351"]
[TimeControl "180+1"]
[EndTime "8:17:29 PST"]
[Termination "RichardLeyvaP won by resignation"]

1. e4 {[%clk 0:03:00.9]} 1... c5 {[%clk 0:03:00.1]} 2. Nf3 {[%clk 0:03:00.5]}
2... Nc6 {[%clk 0:03:00.6]} 3. d4 {[%clk 0:03:00.9]} 3... cxd4 {[%clk
0:03:01.3]} 4. Nxd4 {[%clk 0:03:01.6]} 4... g6 {[%clk 0:03:02]} 5. Nc3 {[%clk
0:03:01.8]} 5... Bg7 {[%clk 0:03:02.2]} 6. Nb3 {[%clk 0:03:02.2]} 6... Nf6
{[%clk 0:03:01.1]} 7. Be2 {[%clk 0:03:02.6]} 7... O-O {[%clk 0:03:00.8]} 8. O-O
{[%clk 0:03:02.9]} 8... a5 {[%clk 0:03:01.5]} 9. a4 {[%clk 0:03:02.4]} 9... d6
{[%clk 0:03:01.8]} 10. Re1 {[%clk 0:03:02.9]} 10... Bd7 {[%clk 0:03:01.4]} 11.
Bf1 {[%clk 0:03:03]} 11... Nb4 {[%clk 0:03:01.5]} 12. Nd5 {[%clk 0:03:01.9]}
12... Nfxd5 {[%clk 0:02:57.3]} 13. exd5 {[%clk 0:03:01.8]} 13... Re8 {[%clk
0:02:56.5]} 14. c3 {[%clk 0:03:00.7]} 14... Na6 {[%clk 0:02:56.2]} 15. Bg5
{[%clk 0:02:59.5]} 15... Qb6 {[%clk 0:02:48.1]} 16. Be3 {[%clk 0:02:57.5]} 16...
Nc5 {[%clk 0:02:41.1]} 17. Ra3 {[%clk 0:02:43.1]} 17... Rac8 {[%clk 0:02:35.1]}
18. Nxc5 {[%clk 0:02:40.9]} 18... dxc5 {[%clk 0:02:31.9]} 19. Rb3 {[%clk
0:02:35.8]} 19... Qc7 {[%clk 0:02:27.4]} 20. Bb5 {[%clk 0:02:32.9]} 20... Bxb5
{[%clk 0:02:13.5]} 21. Rxb5 {[%clk 0:02:32.5]} 21... b6 {[%clk 0:02:13.8]} 22.
Qb3 {[%clk 0:02:32.2]} 22... Rb8 {[%clk 0:02:10.7]} 23. Qc4 {[%clk 0:02:32.4]}
23... Qd7 {[%clk 0:02:07.7]} 24. Rd1 {[%clk 0:02:31.1]} 24... Be5 {[%clk
0:02:00.8]} 25. h3 {[%clk 0:02:30.6]} 25... Bd6 {[%clk 0:02:00.4]} 26. Qe4
{[%clk 0:02:24.4]} 26... e6 {[%clk 0:01:57]} 27. dxe6 {[%clk 0:02:18.6]} 27...
Rxe6 {[%clk 0:01:56.6]} 28. Qd5 {[%clk 0:02:16.2]} 28... Qc7 {[%clk 0:01:53.5]}
29. Qc4 {[%clk 0:02:04]} 29... Rd8 {[%clk 0:01:50.6]} 30. Rf1 {[%clk 0:01:58.7]}
30... Qc6 {[%clk 0:01:35.5]} 31. Qb3 {[%clk 0:01:51.3]} 31... Bc7 {[%clk
0:01:27.4]} 32. c4 {[%clk 0:01:42.7]} 32... Rde8 {[%clk 0:01:14.3]} 33. Qc2
{[%clk 0:01:35.1]} 33... Qd6 {[%clk 0:01:04.1]} 34. g3 {[%clk 0:01:31]} 34...
Rxe3 {[%clk 0:01:02.6]} 35. fxe3 {[%clk 0:01:31.3]} 35... Qxg3+ {[%clk
0:01:02.7]} 36. Qg2 {[%clk 0:01:31.5]} 36... Qxe3+ {[%clk 0:01:02.4]} 37. Qf2
{[%clk 0:01:31.7]} 37... Qxf2+ {[%clk 0:00:58.7]} 38. Rxf2 {[%clk 0:01:26.6]}
38... Be5 {[%clk 0:00:58.1]} 39. Kf1 {[%clk 0:01:24.5]} 39... Re6 {[%clk
0:00:44.6]} 40. Re2 {[%clk 0:01:24.5]} 40... f5 {[%clk 0:00:41.2]} 41. Rb3
{[%clk 0:01:24.3]} 41... Kf7 {[%clk 0:00:38.9]} 42. Rd3 {[%clk 0:01:24.4]} 42...
Bd4 {[%clk 0:00:36]} 43. Rxe6 {[%clk 0:01:21.9]} 43... Kxe6 {[%clk 0:00:36.9]}
44. Rb3 {[%clk 0:01:22.3]} 44... Ke5 {[%clk 0:00:32.5]} 45. Rxb6 {[%clk
0:01:22.2]} 45... Kf4 {[%clk 0:00:30.6]} 46. Rb5 {[%clk 0:01:03.4]} 46... g5
{[%clk 0:00:28.9]} 47. Rxa5 {[%clk 0:01:03]} 47... g4 {[%clk 0:00:24.9]} 48.
hxg4 {[%clk 0:01:00.9]} 48... fxg4 {[%clk 0:00:25.8]} 49. Ra8 {[%clk 0:00:59.1]}
49... h5 {[%clk 0:00:20.7]} 50. Rf8+ {[%clk 0:00:59]} 50... Kg5 {[%clk
0:00:20.9]} 51. a5 {[%clk 0:00:55.9]} 51... h4 {[%clk 0:00:21.2]} 52. a6 {[%clk
0:00:56.3]} 52... g3 {[%clk 0:00:16.3]} 53. Kg2 {[%clk 0:00:50.1]} 53... Kg4
{[%clk 0:00:16]} 54. Rg8+ {[%clk 0:00:49.7]} 54... Kf4 {[%clk 0:00:16.2]} 55. a7
{[%clk 0:00:49.2]} 1-0

[Event "Early-Titled-Tuesday-Blitz-February-06-2024"]
[Site "Chess.com"]
[Date "2024.02.06"]
[Round "2"]
[White "mac0504"]
[Black "RobertJFischer71"]
[Result "0-1"]
[WhiteElo "2727"]
[BlackElo "2550"]
[TimeControl "180+1"]
[EndTime "8:17:30 PST"]
[Termination "RobertJFischer71 won on time"]

1. c4 {[%clk 0:02:59.4]} 1... c6 {[%clk 0:02:54.6]} 2. b3 {[%clk 0:02:58.8]}
2... d5 {[%clk 0:02:54.2]} 3. Bb2 {[%clk 0:02:58.7]} 3... Nf6 {[%clk 0:02:54.5]}
4. e3 {[%clk 0:02:58.9]} 4... e6 {[%clk 0:02:54.3]} 5. g4 {[%clk 0:02:56.6]}
5... Nbd7 {[%clk 0:02:47.8]} 6. g5 {[%clk 0:02:55.6]} 6... Ne4 {[%clk
0:02:47.7]} 7. h4 {[%clk 0:02:55.6]} 7... a5 {[%clk 0:02:43.2]} 8. Bg2 {[%clk
0:02:53.1]} 8... a4 {[%clk 0:02:41.5]} 9. d3 {[%clk 0:01:53]} 9... a3 {[%clk
0:02:10.5]} 10. Bd4 {[%clk 0:01:51.8]} 10... Nd6 {[%clk 0:02:09]} 11. Nd2 {[%clk
0:01:33.8]} 11... Nf5 {[%clk 0:02:08.3]} 12. Bc3 {[%clk 0:01:31.3]} 12... b5
{[%clk 0:02:04.5]} 13. cxb5 {[%clk 0:01:28.1]} 13... cxb5 {[%clk 0:02:04.4]} 14.
Rc1 {[%clk 0:01:28.4]} 14... b4 {[%clk 0:01:52.8]} 15. Ba1 {[%clk 0:01:27.7]}
15... Ba6 {[%clk 0:01:53.3]} 16. e4 {[%clk 0:01:08.3]} 16... dxe4 {[%clk
0:01:53.2]} 17. dxe4 {[%clk 0:01:07.9]} 17... Ne7 {[%clk 0:01:50]} 18. Nc4
{[%clk 0:00:56.5]} 18... Ng6 {[%clk 0:01:31]} 19. Ne2 {[%clk 0:00:24.9]} 19...
Rc8 {[%clk 0:01:11]} 20. Rh3 {[%clk 0:00:05.6]} 20... Bxc4 {[%clk 0:01:05.5]}
21. bxc4 {[%clk 0:00:05.9]} 21... Nge5 {[%clk 0:00:51.9]} 22. f4 {[%clk
0:00:03.4]} 22... Nxc4 {[%clk 0:00:47.1]} 23. Rd3 {[%clk 0:00:03.5]} 23... Ncb6
{[%clk 0:00:43.3]} 24. Rxc8 {[%clk 0:00:03.2]} 24... Qxc8 {[%clk 0:00:44.2]} 25.
Kf1 {[%clk 0:00:03.2]} 25... Qc4 {[%clk 0:00:28.5]} 26. h5 {[%clk 0:00:03.1]}
26... Qxa2 {[%clk 0:00:25.8]} 27. h6 {[%clk 0:00:03.1]} 27... Rg8 {[%clk
0:00:24.7]} 28. hxg7 {[%clk 0:00:03.5]} 28... Bxg7 {[%clk 0:00:24.6]} 29. Bxg7
{[%clk 0:00:04.4]} 29... Rxg7 {[%clk 0:00:25.3]} 30. e5 {[%clk 0:00:04]} 30...
Qc4 {[%clk 0:00:20.6]} 31. Rd4 {[%clk 0:00:03.2]} 31... Qc5 {[%clk 0:00:18.8]}
32. Rd6 {[%clk 0:00:01.3]} 32... a2 {[%clk 0:00:18]} 33. Rc6 {[%clk 0:00:01.6]}
33... Qa5 {[%clk 0:00:17.4]} 0-1

[Event "Early-Titled-Tuesday-Blitz-February-06-2024"]
[Site "Chess.com"]
[Date "2024.02.06"]
[Round "2"]
[White "Huragan007"]
[Black "ActorXu"]
[Result "0-1"]
[WhiteElo "2597"]
[BlackElo "2873"]
[TimeControl "180+1"]
[EndTime "8:17:31 PST"]
[Termination "ActorXu won by resignation"]

1. e4 {[%clk 0:03:00.9]} 1... c5 {[%clk 0:02:58.2]} 2. b3 {[%clk 0:03:00.9]}
2... Nf6 {[%clk 0:02:56.2]} 3. Nc3 {[%clk 0:03:00.2]} 3... Nc6 {[%clk
0:02:54.2]} 4. Bb2 {[%clk 0:02:59.9]} 4... d6 {[%clk 0:02:53.9]} 5. Bb5 {[%clk
0:02:58.6]} 5... Bd7 {[%clk 0:02:51.9]} 6. f4 {[%clk 0:02:54.1]} 6... a6 {[%clk
0:02:50.4]} 7. Bxc6 {[%clk 0:02:54.2]} 7... Bxc6 {[%clk 0:02:51.3]} 8. Qe2
{[%clk 0:02:54.4]} 8... e6 {[%clk 0:02:48.5]} 9. Nf3 {[%clk 0:02:54.1]} 9... b5
{[%clk 0:02:48.4]} 10. e5 {[%clk 0:02:30.8]} 10... Nh5 {[%clk 0:02:34.1]} 11.
Qe3 {[%clk 0:02:06.1]} 11... g6 {[%clk 0:02:28.9]} 12. g4 {[%clk 0:01:56.7]}
12... Ng7 {[%clk 0:02:25.3]} 13. exd6 {[%clk 0:01:47.6]} 13... Bxd6 {[%clk
0:02:25.1]} 14. Ne4 {[%clk 0:01:45.1]} 14... Bxe4 {[%clk 0:02:24.8]} 15. Qxe4
{[%clk 0:01:42]} 15... O-O {[%clk 0:02:21.3]} 16. O-O-O {[%clk 0:01:18.9]} 16...
f5 {[%clk 0:02:15.6]} 17. gxf5 {[%clk 0:01:12]} 17... Rxf5 {[%clk 0:02:12.2]}
18. Ne5 {[%clk 0:01:07.3]} 18... Bxe5 {[%clk 0:02:08.5]} 19. Bxe5 {[%clk
0:01:05.5]} 19... Qd5 {[%clk 0:02:08.4]} 20. d3 {[%clk 0:00:57.3]} 20... Raf8
{[%clk 0:02:03.7]} 21. Rde1 {[%clk 0:00:55.2]} 21... Nh5 {[%clk 0:02:00]} 22.
Qxd5 {[%clk 0:00:47.9]} 22... exd5 {[%clk 0:02:00.9]} 23. Bd6 {[%clk 0:00:48.3]}
23... Rc8 {[%clk 0:01:56.8]} 24. Re7 {[%clk 0:00:39.4]} 24... Nxf4 {[%clk
0:01:52.7]} 25. Rhe1 {[%clk 0:00:32.6]} 25... c4 {[%clk 0:01:49.1]} 26. dxc4
{[%clk 0:00:24.3]} 26... dxc4 {[%clk 0:01:48.3]} 27. bxc4 {[%clk 0:00:24.4]}
27... Rxc4 {[%clk 0:01:40.3]} 28. Kb2 {[%clk 0:00:18.5]} 28... Nd5 {[%clk
0:01:32.8]} 29. Ra7 {[%clk 0:00:16.8]} 29... Rc8 {[%clk 0:01:22]} 30. Re6 {[%clk
0:00:06.4]} 30... Rf2 {[%clk 0:01:01]} 31. Kb1 {[%clk 0:00:05.2]} 31... Rfxc2
{[%clk 0:00:49.3]} 32. Re8+ {[%clk 0:00:01.9]} 32... Rxe8 {[%clk 0:00:48.7]} 33.
Kxc2 {[%clk 0:00:02.8]} 33... Re2+ {[%clk 0:00:44.5]} 34. Kb3 {[%clk 0:00:03.5]}
34... Re3+ {[%clk 0:00:44.9]} 35. Kb2 {[%clk 0:00:03.5]} 35... Nb6 {[%clk
0:00:43.2]} 36. Rxa6 {[%clk 0:00:02.6]} 36... Nc4+ {[%clk 0:00:42.6]} 37. Kc2
{[%clk 0:00:02.5]} 37... Re2+ {[%clk 0:00:40.9]} 38. Kc3 {[%clk 0:00:02.1]}
38... Nxd6 {[%clk 0:00:39.4]} 39. Rxd6 {[%clk 0:00:02.2]} 39... Rxa2 {[%clk
0:00:40.1]} 40. Rb6 {[%clk 0:00:01.2]} 40... Rxh2 {[%clk 0:00:39.9]} 41. Rxb5
{[%clk 0:00:01.7]} 41... Rf2 {[%clk 0:00:40.2]} 42. Kd4 {[%clk 0:00:02.6]} 42...
Kg7 {[%clk 0:00:38.9]} 43. Ke3 {[%clk 0:00:02.2]} 43... Rf5 {[%clk 0:00:38.5]}
0-1

[Event "Early-Titled-Tuesday-Blitz-February-06-2024"]
[Site "Chess.com"]
[Date "2024.02.06"]
[Round "2"]
[White "Mops_2004"]
[Black "SabinaFoisor"]
[Result "1-0"]
[WhiteElo "2676"]
[BlackElo "2367"]
[TimeControl "180+1"]
[EndTime "8:17:31 PST"]
[Termination "Mops_2004 won by resignation"]

1. f4 {[%clk 0:03:00.9]} 1... d5 {[%clk 0:02:59.6]} 2. Nf3 {[%clk 0:03:01]} 2...
c5 {[%clk 0:02:59.9]} 3. e3 {[%clk 0:03:00.2]} 3... g6 {[%clk 0:03:00.4]} 4. d4
{[%clk 0:02:56.6]} 4... Bg7 {[%clk 0:02:57.8]} 5. Be2 {[%clk 0:02:56.6]} 5...
Nf6 {[%clk 0:02:54.5]} 6. Ne5 {[%clk 0:02:56.4]} 6... O-O {[%clk 0:02:53.8]} 7.
Nc3 {[%clk 0:02:56.4]} 7... b6 {[%clk 0:02:52.4]} 8. h4 {[%clk 0:02:55.3]} 8...
h5 {[%clk 0:02:37.4]} 9. Bf3 {[%clk 0:02:54.2]} 9... c4 {[%clk 0:02:27.2]} 10.
Nxc4 {[%clk 0:02:53.4]} 10... Bg4 {[%clk 0:02:23.8]} 11. Ne5 {[%clk 0:02:53.4]}
11... Bxf3 {[%clk 0:02:22.2]} 12. gxf3 {[%clk 0:02:50.6]} 12... Nbd7 {[%clk
0:02:12.5]} 13. Qd3 {[%clk 0:02:49.9]} 13... Nxe5 {[%clk 0:02:11.4]} 14. fxe5
{[%clk 0:02:49.6]} 14... Ne8 {[%clk 0:02:11.3]} 15. e4 {[%clk 0:02:42.5]} 15...
Nc7 {[%clk 0:02:09.5]} 16. Bg5 {[%clk 0:02:37.7]} 16... dxe4 {[%clk 0:02:03.9]}
17. fxe4 {[%clk 0:02:37.1]} 17... Ne6 {[%clk 0:02:03]} 18. Be3 {[%clk
0:02:30.8]} 18... Rc8 {[%clk 0:01:55.3]} 19. O-O-O {[%clk 0:02:30.3]} 19... Qc7
{[%clk 0:01:54.8]} 20. Kb1 {[%clk 0:02:29.3]} 20... Qc4 {[%clk 0:01:54.4]} 21.
Nd5 {[%clk 0:02:27.1]} 21... Rfe8 {[%clk 0:01:45.3]} 22. Rhf1 {[%clk 0:02:22.5]}
22... Qxd3 {[%clk 0:01:39.9]} 23. cxd3 {[%clk 0:02:13.1]} 23... Nc7 {[%clk
0:01:40.8]} 24. Nc3 {[%clk 0:01:25.6]} 24... Rcd8 {[%clk 0:01:28.9]} 25. Rc1
{[%clk 0:01:22.1]} 25... Ne6 {[%clk 0:01:26.3]} 26. d5 {[%clk 0:01:19.3]} 26...
Nc5 {[%clk 0:01:12.2]} 27. d4 {[%clk 0:01:19.1]} 27... Nd3 {[%clk 0:01:07.1]}
28. Rcd1 {[%clk 0:01:17.5]} 28... Nb4 {[%clk 0:01:07.3]} 29. Rf2 {[%clk
0:01:14.2]} 29... f6 {[%clk 0:01:04.7]} 30. e6 {[%clk 0:01:11.8]} 30... f5
{[%clk 0:01:04]} 31. a3 {[%clk 0:01:10]} 31... Na6 {[%clk 0:01:02.9]} 32. exf5
{[%clk 0:01:08.8]} 32... Nc7 {[%clk 0:01:00.7]} 33. Rg1 {[%clk 0:00:40]} 33...
Nxd5 {[%clk 0:00:57.5]} 34. Nxd5 {[%clk 0:00:40.9]} 34... Rxd5 {[%clk
0:00:57.3]} 35. Rxg6 {[%clk 0:00:41.4]} 35... Kh7 {[%clk 0:00:49.6]} 36. Rg5
{[%clk 0:00:41.6]} 36... Bxd4 {[%clk 0:00:44]} 37. Rxh5+ {[%clk 0:00:27.7]}
37... Kg7 {[%clk 0:00:43.3]} 38. Rg2+ {[%clk 0:00:27.7]} 38... Kf6 {[%clk
0:00:43.2]} 39. Rg6+ {[%clk 0:00:17.3]} 39... Ke5 {[%clk 0:00:43.4]} 40. f6+
{[%clk 0:00:15.2]} 40... Kxe6 {[%clk 0:00:43.8]} 41. fxe7+ {[%clk 0:00:11.1]}
41... Kf7 {[%clk 0:00:40.6]} 42. Rxd5 {[%clk 0:00:10.8]} 42... Bxe3 {[%clk
0:00:33.2]} 43. Rgd6 {[%clk 0:00:10]} 43... Rxe7 {[%clk 0:00:33]} 44. Rd7 {[%clk
0:00:10]} 44... Bc5 {[%clk 0:00:29.3]} 45. h5 {[%clk 0:00:09.1]} 1-0

[Event "Early-Titled-Tuesday-Blitz-February-06-2024"]
[Site "Chess.com"]
[Date "2024.02.06"]
[Round "2"]
[White "Muslim_player_05"]
[Black "Nechitaylo_Nikita"]
[Result "1-0"]
[WhiteElo "2505"]
[BlackElo "2300"]
[TimeControl "180+1"]
[EndTime "8:17:31 PST"]
[Termination "Muslim_player_05 won by checkmate"]

1. d4 {[%clk 0:03:00.9]} 1... Nf6 {[%clk 0:03:00]} 2. c4 {[%clk 0:03:00.8]} 2...
e6 {[%clk 0:03:00.8]} 3. Nc3 {[%clk 0:03:00.5]} 3... Bb4 {[%clk 0:03:01.2]} 4.
e3 {[%clk 0:03:00.6]} 4... O-O {[%clk 0:03:01.3]} 5. Bd3 {[%clk 0:03:00.1]} 5...
Re8 {[%clk 0:03:01.9]} 6. Ne2 {[%clk 0:02:58.9]} 6... d5 {[%clk 0:03:00.3]} 7.
O-O {[%clk 0:02:55.7]} 7... Nbd7 {[%clk 0:02:59.5]} 8. cxd5 {[%clk 0:02:35.3]}
8... exd5 {[%clk 0:02:59]} 9. Qb3 {[%clk 0:02:17.5]} 9... Bd6 {[%clk 0:02:39.8]}
10. Ng3 {[%clk 0:01:39.5]} 10... c6 {[%clk 0:02:21.6]} 11. Bd2 {[%clk
0:01:39.2]} 11... Nf8 {[%clk 0:02:21.4]} 12. Rae1 {[%clk 0:01:38.2]} 12... h5
{[%clk 0:02:14.9]} 13. Nf5 {[%clk 0:01:27.6]} 13... Bxf5 {[%clk 0:02:11.1]} 14.
Bxf5 {[%clk 0:01:27.3]} 14... g6 {[%clk 0:02:11.8]} 15. Bd3 {[%clk 0:01:08.5]}
15... b5 {[%clk 0:01:12]} 16. e4 {[%clk 0:00:52.2]} 16... dxe4 {[%clk
0:00:43.4]} 17. Nxe4 {[%clk 0:00:47.5]} 17... Nxe4 {[%clk 0:00:29.3]} 18. Bxe4
{[%clk 0:00:36.6]} 18... Bxh2+ {[%clk 0:00:28.6]} 19. Kxh2 {[%clk 0:00:22.1]}
19... Qh4+ {[%clk 0:00:29.2]} 20. Kg1 {[%clk 0:00:18.7]} 20... Rxe4 {[%clk
0:00:29]} 21. Bg5 {[%clk 0:00:17.7]} 21... Qxg5 {[%clk 0:00:11.9]} 22. Rxe4
{[%clk 0:00:17.5]} 22... Ne6 {[%clk 0:00:12.7]} 23. Rd1 {[%clk 0:00:13.9]} 23...
Rd8 {[%clk 0:00:11.6]} 24. Qc3 {[%clk 0:00:13.1]} 24... Qd5 {[%clk 0:00:11.2]}
25. Re5 {[%clk 0:00:12.2]} 25... Qd6 {[%clk 0:00:09.9]} 26. d5 {[%clk
0:00:12.6]} 26... Nf4 {[%clk 0:00:08.7]} 27. Rde1 {[%clk 0:00:09.8]} 27... Qd7
{[%clk 0:00:02]} 28. dxc6 {[%clk 0:00:09.8]} 28... Qc8 {[%clk 0:00:01.4]} 29. c7
{[%clk 0:00:09.7]} 29... Rd7 {[%clk 0:00:01.4]} 30. Re8+ {[%clk 0:00:10.1]}
30... Kh7 {[%clk 0:00:01.7]} 31. Qh8# {[%clk 0:00:09.9]} 1-0